bitfinex-derivatives/quotes_SOLF0:USTF0_20250623
["timestamp","ask_amount","ask_price","bid_price","bid_amount"]
[1750697475129,22.21020131,132.15,132.05,27.22850131]
[1750697475331,22.21020131,132.13,132.05,5.0183]
[1750697475524,22.21020131,132.13,132.05,27.22850131]
[1750697475722,22.21020131,132.09,132.01,2.4473]
[1750697475928,85.97020131,132.09,132.0,2.4828]
[1750697476336,63.76,132.09,132.01,22.21020131]
[1750697477032,85.97020131,132.09,132.0,2.4828]
[1750697477227,7.5689,132.06,132.02,7.5704]
[1750697477836,7.5689,132.06,132.0,24.69300131]
[1750697478037,85.97020131,132.09,132.0,2.4828]
[1750697478233,85.97020131,132.09,132.0,24.69300131]
[1750697478426,63.76,132.09,132.0,24.69300131]
[1750697478623,63.76,132.09,132.02,22.21020131]
[1750697479036,7.5685,132.06,132.02,22.21020131]
[1750697479623,63.76,132.09,132.0,2.4828]
[1750697479834,63.76,132.09,132.01,22.21020131]
[1750697479835,66.1442,132.09,132.01,22.21020131]
[1750697480236,88.35440131,132.09,132.0,2.4828]
[1750697480641,7.5691,132.05,132.01,22.21020131]
[1750697480831,66.1442,132.09,132.01,22.21020131]
[1750697481237,63.74,132.14,132.05,22.21020131]
[1750697481537,85.95020131,132.14,132.05,22.21020131]
[1750697481836,63.74,132.14,132.05,22.21020131]
[1750697482435,63.74,132.14,132.07,22.21020131]
[1750697482928,63.74,132.14,132.03,2.3145]
[1750697483129,22.21020131,132.13,132.04,22.21020131]
[1750697483330,63.74,132.14,132.04,22.21020131]
[1750697483731,7.5663,132.1,132.07,7.5674]
[1750697483929,63.74,132.14,132.06,22.21020131]
[1750697484332,662.89327517,132.2,132.03,2.3145]
[1750697484333,6.89420184,132.19,132.12,22.21020131]
[1750697484638,22.21020131,132.19,132.08,66.2535]
[1750697484832,6.89420184,132.21,132.1,22.21020131]
[1750697485030,22.21020131,132.21,132.1,22.21020131]
[1750697485238,22.21020131,132.17,132.08,2.4935]
[1750697485435,85.95020131,132.17,132.08,2.4935]
[1750697485840,22.21020131,132.15,132.05,186.22]
[1750697486140,22.21020131,132.15,132.05,208.43020131]
[1750697486441,22.21020131,132.15,132.07,22.21020131]
[1750697487440,7.5652,132.12,132.09,7.5666]
[1750697487647,7.5652,132.12,132.07,22.21020131]
[1750697487648,85.95020131,132.17,132.07,22.21020131]
[1750697488647,22.21020131,132.15,132.07,22.21020131]
[1750697488945,22.21020131,132.16,132.07,22.21020131]
[1750697489437,22.21020131,132.16,132.06,22.21020131]
[1750697489838,7.5664,132.1,132.07,7.5674]
[1750697490242,22.21020131,132.14,132.05,186.22]
[1750697490442,22.21020131,132.16,132.06,22.21020131]
[1750697491241,85.95020131,132.17,132.06,22.21020131]
[1750697491439,7.5659,132.11,132.08,7.5669]
[1750697491649,85.95020131,132.17,132.08,7.5669]
[1750697492148,7.5658,132.11,132.08,7.5669]
[1750697492447,85.95020131,132.17,132.06,22.21020131]
[1750697492644,63.74,132.17,132.1,22.21020131]
[1750697493442,67.5741,132.22,132.15,7.5629]
[1750697493643,22.21020131,132.19,132.1,4.9967]
[1750697493956,22.21020131,132.19,132.11,7.5655]
[1750697494146,7.564,132.14,132.11,7.5655]
[1750697494341,22.21020131,132.19,132.11,7.5655]
[1750697494538,22.21020131,132.19,132.1,12.5625]
[1750697494737,22.21020131,132.17,132.09,2.4421]
[1750697494944,22.21020131,132.15,132.05,4.7646]
[1750697495143,7.5681,132.07,132.05,4.7646]
[1750697495349,22.21020131,132.11,132.05,2.3423]
[1750697495653,7.5677,132.08,132.05,9.9112]
[1750697495849,22.21020131,132.11,132.05,2.3423]
[1750697496045,65.307,132.13,132.08,7.5668]
[1750697496254,7.5655,132.11,132.06,22.21020131]
[1750697496456,62.78,132.13,132.06,22.21020131]
[1750697496747,89.85410131,132.17,132.1,7.5659]
[1750697496942,67.6439,132.17,132.08,22.21020131]
[1750697497146,67.6439,132.17,132.11,7.5655]
[1750697497351,67.6439,132.17,132.08,22.21020131]
[1750697497749,7.5641,132.14,132.08,22.21020131]
[1750697498248,67.6439,132.17,132.1,7.5658]
[1750697498443,7.5644,132.13,132.1,7.5658]
[1750697498642,62.78,132.21,132.12,22.21020131]
[1750697499056,62.78,132.21,132.09,2.38]
[1750697499255,62.78,132.21,132.16,7.5624]
[1750697499451,7.5612,132.19,132.16,7.5624]
[1750697500049,7.5616,132.18,132.16,7.5624]
[1750697500348,7.5616,132.18,132.15,7.5631]
[1750697500550,62.78,132.21,132.13,24.65990131]
[1750697500746,22.21020131,132.19,132.1,22.21020131]
[1750697501150,22.21020131,132.17,132.08,2.3027]
[1750697501351,22.21020131,132.17,132.1,7.5658]
[1750697501652,22.21020131,132.17,132.08,24.51290131]
[1750697502150,7.5656,132.11,132.08,24.51290131]
[1750697502358,62.78,132.16,132.08,24.51290131]
[1750697502850,7.565,132.12,132.08,24.51290131]
[1750697503256,62.78,132.16,132.08,24.51290131]
[1750697503759,62.78,132.16,132.09,7.5661]
[1750697503947,7.5655,132.11,132.09,7.5661]
[1750697504152,62.78,132.16,132.06,2.5181]
[1750697504350,24.57190131,132.15,132.06,24.72830131]
[1750697504650,7.5659,132.11,132.08,7.5669]
[1750697504953,22.21020131,132.13,132.04,24.67490131]
[1750697505149,7.5673,132.08,132.05,7.5687]
[1750697505557,7.5695,132.04,132.01,7.571]
[1750697505757,84.99020131,132.09,131.99,22.21020131]
[1750697506059,65.156,132.08,131.99,22.21020131]
[1750697506257,67.492,132.08,131.99,22.21020131]
[1750697506658,7.5716,132.01,131.98,12.3317]
[1750697507055,7.5716,132.01,131.97,22.21020131]
[1750697507056,22.21020131,132.05,131.96,65.1795]
[1750697507356,4.712,132.08,131.97,22.21020131]
[1750697507556,62.78,132.07,131.97,22.21020131]
[1750697507760,7.5703,132.03,132.0,7.5713]
[1750697507965,62.78,132.07,131.97,22.21020131]
[1750697508460,7.5695,132.04,132.0,7.5715]
[1750697508660,62.78,132.07,131.97,22.21020131]
[1750697509054,7.57,132.04,132.0,7.5718]
[1750697509366,62.78,132.07,131.97,22.21020131]
[1750697510057,22.21020131,132.06,131.97,22.21020131]
[1750697510258,22.21020131,132.04,131.96,2.3995]
[1750697510660,22.21020131,132.06,131.96,2.3995]
[1750697510856,22.21020131,132.06,131.97,22.21020131]
[1750697511058,62.78,132.07,131.97,22.21020131]
[1750697511255,62.78,132.07,131.99,22.21020131]
[1750697511560,62.78,132.07,131.97,22.21020131]
[1750697511758,84.99020131,132.07,131.97,22.21020131]
[1750697512063,62.78,132.07,131.99,22.21020131]
[1750697512254,62.78,132.07,132.01,7.5709]
[1750697512455,62.78,132.07,131.97,62.8]
[1750697512655,84.99020131,132.07,132.0,7.5718]
[1750697512855,84.99020131,132.07,131.97,22.21020131]
[1750697513055,22.21020131,132.05,131.97,22.21020131]
[1750697513361,22.21020131,132.05,131.96,2.3995]
[1750697513659,7.5715,132.01,131.98,7.5726]
[1750697513854,22.21020131,132.06,131.96,2.3995]
[1750697514662,62.78,132.07,131.99,22.21020131]
[1750697515256,7.5687,132.06,132.03,7.5698]
[1750697515656,62.78,132.07,132.03,7.5698]
[1750697515866,7.5695,132.04,132.0,2.3556]
[1750697516161,62.78,132.07,131.97,84.21020131]
[1750697516364,7.5701,132.03,132.0,7.5717]
[1750697516662,62.78,132.07,132.0,22.21020131]
[1750697517057,7.5692,132.05,132.02,7.5703]
[1750697517662,7.5696,132.04,132.02,7.5703]
[1750697517859,62.78,132.07,132.03,7.57]
[1750697518163,7.5696,132.04,132.0,22.21020131]
[1750697518468,62.78,132.07,131.96,2.3995]
[1750697518469,22.21020131,132.06,131.96,2.3995]
[1750697518657,22.21020131,132.04,131.96,2.3995]
[1750697518857,22.21020131,132.04,131.96,7.5738]
[1750697519067,22.21020131,132.04,131.95,24.67820131]
[1750697519568,22.21020131,132.04,131.97,7.5733]
[1750697519771,7.5721,132.0,131.97,7.5733]
[1750697519959,62.78,132.07,131.95,24.67820131]
[1750697520158,22.21020131,132.05,131.95,24.67820131]
[1750697520457,22.21020131,132.03,131.93,87.48550131]
[1750697520658,22.21020131,132.01,131.92,2.3972]
[1750697520855,4.6178,132.0,131.92,2.3972]
[1750697521166,6.92142969,132.07,131.95,22.21020131]
[1750697521362,62.82,132.06,131.92,11.76056822]
[1750697521666,22.21020131,132.03,131.95,22.21020131]
[1750697521862,22.21020131,132.01,131.92,24.60740131]
[1750697522062,84.03020131,132.01,131.92,24.60740131]
[1750697522663,84.03020131,132.01,131.93,7.5756]
[1750697522864,84.03020131,132.01,131.92,24.60740131]
[1750697523055,84.03020131,132.01,131.91,2.4889]
[1750697523056,7.5756,131.94,131.91,2.4889]
[1750697523259,22.21020131,131.99,131.91,2.4889]
[1750697523663,7.5742,131.96,131.92,7.576]
[1750697523853,670.13000261,132.08,131.94,22.21020131]
[1750697524059,22.21020131,132.06,131.96,22.21020131]
[1750697524255,22.21020131,132.04,131.97,7.5735]
[1750697524568,22.21020131,132.04,131.95,2.3707]
[1750697524768,7.5731,131.98,131.94,22.21020131]
[1750697524965,84.03020131,132.02,131.94,22.21020131]
[1750697525267,7.5735,131.98,131.94,22.21020131]
[1750697525466,84.03020131,132.02,131.94,22.21020131]
[1750697525656,7.5728,131.99,131.95,7.5743]
[1750697525861,61.82,132.02,131.94,22.21020131]
[1750697526263,61.82,132.02,131.97,7.573]
[1750697526462,61.82,132.02,131.94,22.21020131]
[1750697526658,61.82,132.02,131.96,22.21020131]
[1750697526968,7.5715,132.01,131.98,7.5724]
[1750697527162,61.82,132.02,131.96,22.21020131]
[1750697527468,84.03020131,132.02,131.93,22.21020131]
[1750697527665,84.03020131,132.02,131.91,2.4889]
[1750697527869,61.82,132.02,131.93,22.21020131]
[1750697528269,84.03020131,132.02,131.91,2.4889]
[1750697528473,7.575,131.95,131.92,7.5761]
[1750697528770,22.21020131,132.0,131.91,2.4889]
[1750697528971,7.5756,131.94,131.91,2.4889]
[1750697529172,22.21020131,131.98,131.9,2.3692]
[1750697529563,22.21020131,131.98,131.91,7.5765]
[1750697530065,7.5738,131.97,131.94,7.5752]
[1750697530667,61.82,132.02,131.93,22.21020131]
[1750697530872,61.82,132.02,131.95,22.21020131]
[1750697531067,7.5738,131.97,131.94,7.5751]
[1750697531264,84.03020131,132.02,131.91,22.21020131]
[1750697531468,22.21020131,132.0,131.91,22.21020131]
[1750697531666,22.21020131,131.98,131.9,2.3692]
[1750697531869,61.82,132.02,131.9,2.3692]
[1750697532169,22.21020131,132.01,131.92,22.21020131]
[1750697532678,61.82,132.02,131.92,22.21020131]
[1750697532974,61.82,132.02,131.93,22.21020131]
[1750697533186,22.21020131,131.99,131.9,24.57940131]
[1750697533591,7.5748,131.95,131.9,24.57940131]
[1750697533886,22.21020131,131.99,131.9,24.57940131]
[1750697534080,7.5753,131.94,131.91,7.5767]
[1750697534284,22.21020131,131.99,131.9,24.57940131]
[1750697534787,22.21020131,131.99,131.9,2.3692]
[1750697535780,7.5749,131.95,131.92,7.5763]
[1750697535981,22.21020131,132.0,131.9,2.3692]
[1750697536278,22.21020131,132.0,131.91,22.21020131]
[1750697536481,22.21020131,132.0,131.93,7.5758]
[1750697536678,22.21020131,132.01,131.91,22.21020131]
[1750697536883,7.574,131.97,131.91,22.21020131]
[1750697537286,22.21020131,132.01,131.91,22.21020131]
[1750697537882,7.5726,131.99,131.93,22.21020131]
[1750697538081,61.82,132.02,131.94,22.21020131]
[1750697538386,61.82,132.02,131.9,2.3692]
[1750697538387,7.573,131.98,131.9,2.3692]
[1750697538592,7.573,131.98,131.93,14.2255657]
[1750697538785,76.0455657,132.02,131.93,14.2255657]
[1750697538982,7.5737,131.97,131.94,7.575]
[1750697539180,14.2255657,132.0,131.93,14.2255657]
[1750697539495,14.2255657,132.0,131.91,14.2255657]
[1750697539689,14.2255657,131.98,131.91,14.2255657]
[1750697540191,14.2255657,131.98,131.9,2.3692]
[1750697540383,14.2255657,131.94,131.88,2.3232]
[1750697540585,14.2255657,131.94,131.86,14.2255657]
[1750697540887,61.84,131.96,131.85,4.7989]
[1750697541085,14.2255657,131.92,131.85,4.7989]
[1750697541384,61.84,131.96,131.86,14.2255657]
[1750697541690,7.5757,131.94,131.9,7.5772]
[1750697541895,61.84,131.96,131.85,4.7989]
[1750697541896,61.84,131.96,131.91,14.2255657]
[1750697542095,61.84,131.96,131.85,4.7989]
[1750697542294,84.15847418,131.96,131.87,22.31847418]
[1750697543690,84.15847418,131.96,131.85,4.7989]
[1750697543691,84.15847418,131.96,131.85,27.11737418]
[1750697544297,22.31847418,131.95,131.85,27.11737418]
[1750697544592,7.5764,131.92,131.85,27.11737418]
[1750697545100,22.31847418,131.95,131.86,22.31847418]
[1750697545583,7.5768,131.92,131.86,22.31847418]
[1750697545983,84.15847418,131.96,131.85,4.7989]
[1750697546194,84.15847418,131.96,131.85,27.11737418]
[1750697546396,2.5306,131.95,131.85,27.11737418]
[1750697546591,84.15847418,131.96,131.87,22.31847418]
[1750697546901,61.84,131.96,131.87,22.31847418]
[1750697547199,61.84,131.96,131.92,7.5763]
[1750697547394,84.15847418,131.96,131.85,4.7989]
[1750697547698,22.31847418,131.94,131.86,22.31847418]
[1750697548288,84.15847418,131.96,131.86,22.31847418]
[1750697548691,7.5761,131.93,131.9,7.5772]
[1750697548892,7.5761,131.93,131.86,22.31847418]
[1750697549095,61.84,131.96,131.88,22.31847418]
[1750697549289,7.5755,131.94,131.91,7.5767]
[1750697549488,61.84,131.96,131.85,4.7989]
[1750697549489,61.84,131.96,131.87,22.31847418]
[1750697549891,7.5755,131.94,131.87,22.31847418]
[1750697550093,61.84,131.96,131.89,22.31847418]
[1750697550398,7.575,131.95,131.89,22.31847418]
[1750697550798,61.84,131.96,131.89,22.31847418]
[1750697551594,61.84,131.96,131.87,22.31847418]
[1750697552192,61.84,131.96,131.85,42.27817418]
[1750697552493,61.84,131.96,131.92,7.5761]
[1750697553501,7.5757,131.94,131.85,42.27817418]
[1750697553798,61.84,131.96,131.89,22.31847418]
[1750697553999,61.84,131.96,131.85,51.6415424]
[1750697554000,7.5759,131.93,131.87,22.31847418]
[1750697554501,61.84,131.96,131.87,7.579]
[1750697554502,7.5782,131.89,131.87,7.579]
[1750697554697,22.31847418,131.93,131.83,2.311]
[1750697554894,2.3335,131.95,131.83,2.311]
[1750697554895,22.31847418,131.91,131.83,2.311]
[1750697555088,7.5792,131.88,131.85,7.58]
[1750697555297,22.31847418,131.91,131.83,2.311]
[1750697555700,7.5797,131.87,131.84,7.5807]
[1750697556002,83.25847418,131.91,131.83,2.311]
[1750697556696,60.94,131.91,131.83,2.311]
[1750697557996,60.94,131.91,131.84,7.5805]
[1750697558197,22.31847418,131.9,131.81,60.94]
[1750697558796,22.31847418,131.9,131.8,2.464]
[1750697558997,60.94,131.91,131.79,4.9425]
[1750697559198,60.94,131.91,131.8,22.31847418]
[1750697559400,22.31847418,131.9,131.82,7.5822]
[1750697559800,22.31847418,131.9,131.79,27.26097418]
[1750697560506,7.5814,131.85,131.82,7.5823]
[1750697560698,22.31847418,131.88,131.79,4.9425]
[1750697560899,22.31847418,131.86,131.76,22.31847418]
[1750697561094,65.61,131.87,131.73,363.21764268]
[1750697561095,22.31847418,131.84,131.75,4.8651]
[1750697561704,60.96,131.85,131.75,4.8651]
[1750697561902,22.31847418,131.84,131.74,2.4058]
[1750697562107,22.31847418,131.82,131.74,2.4058]
[1750697562407,22.31847418,131.81,131.73,230.89427446]
[1750697562608,7.5855,131.78,131.74,7.587]
[1750697562808,60.98,131.81,131.74,7.587]
[1750697563199,60.98,131.81,131.73,230.89427446]
[1750697563409,60.98,131.81,131.73,253.21274864]
[1750697563607,4.65,131.87,131.73,230.89427446]
[1750697563904,22.31847418,131.85,131.75,22.31847418]
[1750697564102,22.31847418,131.84,131.73,230.89427446]
[1750697564314,60.98,131.86,131.73,230.89427446]
[1750697564605,14.27029764,131.84,131.72,4.7061]
[1750697564806,14.27029764,131.77,131.65,9.36336822]
[1750697565102,14.27029764,131.84,131.67,14.27029764]
[1750697565103,14.27029764,131.75,131.67,14.27029764]
[1750697565301,14.27029764,131.77,131.69,14.27029764]
[1750697565504,75.25029764,131.79,131.71,14.27029764]
[1750697565707,7.5864,131.76,131.73,7.5875]
[1750697565907,75.25029764,131.79,131.73,7.5875]
[1750697566103,75.25029764,131.79,131.67,60.98]
[1750697566298,7.5866,131.76,131.73,7.5876]
[1750697566504,75.25029764,131.79,131.73,14.27029764]
[1750697566706,75.25029764,131.79,131.68,14.27029764]
[1750697567003,75.25029764,131.79,131.71,14.27029764]
[1750697567210,14.27029764,131.77,131.67,60.98]
[1750697567407,14.27029764,131.77,131.68,14.27029764]
[1750697568210,14.27029764,131.75,131.67,75.25029764]
[1750697568510,14.27029764,131.75,131.67,14.27029764]
[1750697568898,14.27029764,131.76,131.67,14.27029764]
[1750697569103,14.27029764,131.74,131.67,14.27029764]
[1750697569414,4.6962,131.78,131.69,14.27029764]
[1750697569611,79.96649764,131.78,131.69,14.27029764]
[1750697569809,79.96649764,131.78,131.7,2.3625]
[1750697570115,7.5865,131.76,131.73,7.5878]
[1750697570512,79.96649764,131.78,131.72,7.5882]
[1750697570513,7.5867,131.75,131.72,7.5882]
[1750697570713,79.96649764,131.78,131.7,2.3625]
[1750697571213,2.3596,131.78,131.71,14.27029764]
[1750697571508,14.27029764,131.85,131.77,14.27029764]
[1750697571707,7.5855,131.78,131.75,7.5864]
[1750697571909,14.27029764,131.83,131.74,14.27029764]
[1750697572512,14.27029764,131.79,131.72,14.27029764]
[1750697572910,14.27029764,131.79,131.72,7.5881]
[1750697573110,14.27029764,131.79,131.71,19.21009764]
[1750697573313,7.5869,131.75,131.71,26.79879764]
[1750697573614,14.27029764,131.79,131.71,4.9398]
[1750697573802,14.27029764,131.79,131.71,19.21009764]
[1750697574008,14.27029764,131.77,131.71,2.5024]
[1750697574315,14.27029764,131.77,131.7,2.3625]
[1750697574819,14.27029764,131.75,131.68,2.4751]
[1750697575110,75.29029764,131.75,131.66,16.64209764]
[1750697575810,61.02,131.75,131.66,16.64209764]
[1750697576014,61.02,131.75,131.68,14.27029764]
[1750697576311,61.02,131.75,131.66,2.3718]
[1750697576515,7.5883,131.73,131.67,14.27029764]
[1750697576711,61.02,131.75,131.67,14.27029764]
[1750697577019,7.5876,131.74,131.71,7.5889]
[1750697577213,61.02,131.75,131.69,14.27029764]
[1750697578320,7.5876,131.74,131.69,14.27029764]
[1750697578617,61.02,131.75,131.69,14.27029764]
[1750697579418,61.02,131.75,131.71,7.5888]
[1750697579610,61.02,131.75,131.66,2.3718]
[1750697579807,75.29029764,131.75,131.67,14.27029764]
[1750697580115,4.8708,131.79,131.67,14.27029764]
[1750697580116,14.27029764,131.76,131.67,14.27029764]
[1750697580320,7.5882,131.73,131.66,16.64209764]
[1750697580516,14.27029764,131.76,131.68,14.27029764]
[1750697580719,4.8708,131.79,131.68,14.27029764]
[1750697580911,14.27029764,131.77,131.68,14.27029764]
[1750697581309,14.27029764,131.73,131.66,16.64209764]
[1750697581514,14.27029764,131.74,131.66,16.64209764]
[1750697581713,14.27029764,131.74,131.66,2.3718]
[1750697581926,14.27029764,131.72,131.64,16.67889764]
[1750697582223,14.27029764,131.66,131.58,14.27029764]
[1750697582411,7.5939,131.63,131.6,7.5951]
[1750697582611,60.28,131.66,131.6,14.27029764]
[1750697583116,14.27029764,131.7,131.62,14.27029764]
[1750697583317,79.19319764,131.71,131.6,60.28]
[1750697583615,64.9229,131.71,131.64,14.27029764]
[1750697583814,14.27029764,131.76,131.68,14.27029764]
[1750697584115,14.27029764,131.76,131.62,4.7437]
[1750697584324,62.5853,131.77,131.7,14.27029764]
[1750697584706,62.5853,131.77,131.66,60.28]
[1750697584707,60.28,131.77,131.72,14.27029764]
[1750697585317,672.06789764,131.8,131.72,14.27029764]
[1750697585620,655.46,131.8,131.74,14.27029764]
[1750697585916,669.73029764,131.8,131.69,66.7704]
[1750697586113,7.5872,131.75,131.71,14.27029764]
[1750697586418,669.73029764,131.8,131.71,14.27029764]
[1750697586812,669.73029764,131.8,131.73,14.27029764]
[1750697587112,60.28,131.81,131.73,14.27029764]
[1750697587113,7.5848,131.79,131.73,14.27029764]
[1750697587316,60.28,131.81,131.73,14.27029764]
[1750697587516,14.27029764,131.78,131.71,60.28]
[1750697587821,14.27029764,131.76,131.69,4.7704]
[1750697588118,14.27029764,131.77,131.69,4.7704]
[1750697588721,60.28,131.81,131.69,4.7704]
[1750697589019,14.27029764,131.75,131.69,2.3682]
[1750697589321,7.5875,131.74,131.71,7.5887]
[1750697589521,74.55029764,131.81,131.72,14.27029764]
[1750697589718,7.5845,131.79,131.76,7.5859]
[1750697590017,60.28,131.85,131.72,60.28]
[1750697590018,60.28,131.85,131.77,14.27029764]
[1750697590219,7.5832,131.82,131.78,7.5845]
[1750697590409,60.28,131.85,131.77,14.27029764]
[1750697590614,14.27029764,131.84,131.75,14.27029764]
[1750697590810,14.27029764,131.84,131.78,7.5846]
[1750697591013,14.27029764,131.84,131.73,5.0003]
[1750697591209,7.583,131.82,131.79,7.5842]
[1750697591619,14.27029764,131.91,131.81,14.27029764]
[1750697591826,7.5802,131.87,131.83,14.27029764]
[1750697592132,2.5235,131.91,131.83,14.27029764]
[1750697592426,62.617,131.92,131.87,14.27029764]
[1750697592620,62.8035,131.96,131.87,14.27029764]
[1750697592923,79.41079764,131.96,131.87,14.27029764]
[1750697593117,65.1405,131.96,131.89,14.27029764]
[1750697593321,65.1405,131.96,131.89,7.5785]
[1750697593618,65.1405,131.96,131.89,14.27029764]
[1750697593820,60.26,132.04,131.95,21.84549764]
[1750697594026,655.36,132.05,131.92,14.27029764]
[1750697594027,2.3387,132.05,131.99,14.27029764]
[1750697594325,60.26,132.09,132.03,14.27029764]
[1750697594520,74.53029764,132.09,132.01,14.27029764]
[1750697594828,74.53029764,132.09,132.04,14.27029764]
[1750697594829,60.26,132.09,132.04,14.27029764]
[1750697595124,655.36,132.12,132.0,14.27029764]
[1750697595324,64.9357,132.13,132.07,14.27029764]
[1750697595525,60.26,132.13,132.07,14.27029764]
[1750697595729,14.27029764,132.11,132.01,2.4157]
[1750697596025,60.26,132.13,132.05,14.27029764]
[1750697596222,60.26,132.13,132.07,14.27029764]
[1750697596425,60.26,132.13,132.07,22.25251784]
[1750697597028,7.5657,132.12,132.07,29.82061784]
[1750697597226,4.6714,132.18,132.09,22.25251784]
[1750697597227,60.22,132.17,132.09,22.25251784]
[1750697598225,7.5647,132.14,132.09,22.25251784]
[1750697598617,22.25251784,132.15,132.07,22.25251784]
[1750697598822,22.25251784,132.15,132.05,84.25251784]
[1750697599029,22.25251784,132.13,132.04,60.22]
[1750697599227,60.18,132.12,132.02,2.3855]
[1750697599419,60.18,132.11,132.03,22.25251784]
[1750697599619,60.18,132.14,132.04,22.25251784]
[1750697599830,60.18,132.14,132.08,22.25251784]
[1750697600130,60.18,132.14,132.07,22.25251784]
[1750697600524,82.43251784,132.14,132.05,22.25251784]
[1750697600729,22.25251784,132.12,132.03,22.25251784]
[1750697600926,7.5678,132.08,132.03,22.25251784]
[1750697601233,22.25251784,132.12,132.02,2.3855]
[1750697601431,82.43251784,132.14,132.05,22.25251784]
[1750697602129,7.5668,132.1,132.05,29.82181784]
[1750697602326,60.18,132.14,132.02,24.63801784]
[1750697602532,22.25251784,132.12,132.02,2.3855]
[1750697602731,22.25251784,132.12,132.02,24.63801784]
[1750697603034,7.5668,132.1,132.06,7.5689]
[1750697603226,60.18,132.14,132.06,22.25251784]
[1750697603537,60.18,132.14,132.08,22.25251784]
[1750697603928,60.18,132.14,132.05,60.16]
[1750697604131,60.18,132.14,132.06,22.25251784]
[1750697604825,7.567,132.1,132.06,22.25251784]
[1750697605026,22.25251784,132.13,132.03,22.25251784]
[1750697605334,60.18,132.14,132.06,7.5685]
[1750697605831,7.5681,132.08,132.03,7.5702]
[1750697606229,22.25251784,132.11,132.02,2.3855]
[1750697606426,22.25251784,132.11,132.03,7.5702]
[1750697606825,7.5676,132.09,132.03,22.25251784]
[1750697607030,22.25251784,132.13,132.03,22.25251784]
[1750697607233,22.25251784,132.12,132.02,24.63801784]
[1750697607435,7.5678,132.08,132.04,7.5697]
[1750697607636,22.25251784,132.12,132.02,24.63801784]
[1750697607835,62.5105,132.14,132.04,22.25251784]
[1750697608035,62.5105,132.14,132.06,22.25251784]
[1750697608237,60.18,132.14,132.06,22.25251784]
[1750697609039,7.5659,132.12,132.07,7.568]
[1750697609538,60.18,132.14,132.11,7.5659]
[1750697609838,60.18,132.14,132.08,22.25251784]
[1750697610137,87.06171784,132.18,132.04,60.14]
[1750697610338,22.25251784,132.16,132.06,22.25251784]
[1750697610636,22.25251784,132.14,132.06,22.25251784]
[1750697610838,22.25251784,132.15,132.06,22.25251784]
[1750697611239,7.5663,132.11,132.07,7.568]
[1750697611642,64.8092,132.18,132.06,22.25251784]
[1750697611841,22.25251784,132.16,132.08,22.25251784]
[1750697612342,87.06171784,132.18,132.11,7.5657]
[1750697612539,22.25251784,132.16,132.07,22.25251784]
[1750697612940,22.25251784,132.14,132.05,22.25251784]
[1750697613342,7.5687,132.07,132.03,29.82291784]
[1750697613544,59.58,132.11,132.02,2.3855]
[1750697613740,59.58,132.11,132.03,22.25251784]
[1750697613941,59.58,132.11,132.05,7.5693]
[1750697614136,59.58,132.11,132.03,22.25251784]
[1750697614543,7.5675,132.09,132.05,7.5693]
[1750697614842,7.5675,132.09,132.03,22.25251784]
[1750697614843,59.58,132.11,132.02,2.3855]
[1750697615043,59.58,132.11,132.04,22.25251784]
[1750697615247,59.58,132.11,132.03,22.25251784]
[1750697615641,7.5674,132.09,132.05,7.5692]
[1750697615850,59.58,132.11,132.05,7.5692]
[1750697616145,7.5681,132.08,132.04,7.5695]
[1750697616549,81.83251784,132.11,132.02,2.3855]
[1750697617147,81.83251784,132.11,132.04,7.5697]
[1750697617336,59.58,132.11,132.03,22.25251784]
[1750697617741,59.58,132.11,132.06,7.5689]
[1750697617940,59.58,132.11,132.03,22.25251784]
[1750697618246,59.58,132.11,132.05,7.5693]
[1750697618443,59.58,132.11,132.03,22.25251784]
[1750697618648,59.58,132.11,132.02,2.3855]
[1750697618649,22.25251784,132.1,132.02,2.3855]
[1750697618945,81.83251784,132.11,132.02,2.3855]
[1750697619253,81.83251784,132.11,132.04,7.5697]
[1750697619449,81.83251784,132.11,132.02,2.3855]
[1750697620345,81.83251784,132.11,132.03,7.5703]
[1750697620745,81.83251784,132.11,131.96,655.36]